bitfinex/quotes_ETHUSD_20240716
["timestamp","ask_amount","ask_price","bid_price","bid_amount"]
[1721116141411,1.04682902,3392.4,3392.2,2.94791]
[1721116141612,0.91678491,3392.6,3392.0,3.0]
[1721116141613,1.75280996,3392.3,3392.0,3.0]
[1721116141779,1.75280996,3392.2,3392.0,3.684948]
[1721116141982,1.75280996,3392.2,3391.7,3.84965]
[1721116141983,0.43567838,3392.1,3391.7,3.84965]
[1721116142195,0.61118994,3392.3,3391.8,2.94827]
[1721116142498,0.61118994,3392.3,3391.7,0.90129]
[1721116142811,0.61118994,3392.3,3391.2,0.889787]
[1721116142812,0.61118994,3391.9,3391.3,2.94871]
[1721116143120,0.61118994,3391.4,3390.9,2.949]
[1721116143280,0.61118994,3391.4,3391.0,0.2949]
[1721116143614,0.61118994,3391.4,3389.8,0.61814339]
[1721116143615,0.61118994,3391.1,3390.2,2.94964]
[1721116143816,0.61118994,3391.1,3390.1,4.094]
[1721116143817,0.61084671,3390.9,3390.1,4.094]
[1721116143970,0.61084671,3390.5,3389.6,9.39989]
[1721116144172,0.61084671,3390.4,3389.7,2.95003]
[1721116144394,0.61084671,3390.3,3389.7,2.95003]
[1721116144593,1.05233975,3390.3,3389.8,0.704403]
[1721116144769,0.38487213,3390.2,3390.0,2.94983]
[1721116144981,0.61084671,3390.4,3390.0,2.94983]
[1721116145469,0.61084671,3390.4,3389.8,3.820403]
[1721116145674,7.15955919,3390.7,3390.2,3.116]
[1721116145675,6.54802602,3390.7,3390.2,3.116]
[1721116145868,5.93717931,3390.7,3390.3,0.94819]
[1721116146111,0.91678491,3391.0,3390.6,7.04333]
[1721116146112,0.61084671,3390.9,3390.6,7.04333]
[1721116146326,0.91678491,3391.0,3390.6,7.04333]
[1721116146327,0.61084671,3391.0,3390.6,7.04333]
[1721116146469,1.66341962,3391.0,3390.7,5.94922]
[1721116146671,5.93717931,3391.1,3390.8,3.953452]
[1721116147271,5.93717931,3391.1,3391.0,2.94898]
[1721116147508,5.93717931,3391.1,3390.8,3.953452]
[1721116147509,5.93717931,3391.1,3390.9,2.94906]
[1721116147707,0.3849713,3391.0,3390.9,2.94906]
[1721116147908,5.93717931,3391.1,3390.8,1.004322]
[1721116148070,5.93717931,3391.1,3390.7,3.0]
[1721116148272,5.93717931,3391.1,3390.9,2.94899]
[1721116148472,5.93717931,3391.1,3391.0,2.94898]
[1721116148785,5.93717931,3391.1,3390.7,7.415272]
[1721116148786,5.93717931,3391.1,3390.9,2.94906]
[1721116149112,5.93717931,3391.1,3391.0,2.94898]
[1721116149411,6.54802602,3391.7,3391.3,2.94871]
[1721116149608,1.66372073,3391.6,3391.4,0.294871]
[1721116149817,0.38504389,3391.5,3391.4,0.294871]
[1721116150119,0.61084671,3391.9,3391.7,2.94837]
[1721116150672,0.61125409,3391.8,3391.4,0.294871]
[1721116150879,1.05297099,3391.7,3391.4,3.243421]
[1721116151108,0.6113446,3391.8,3391.5,3.8677621]
[1721116151407,1.05329079,3391.8,3391.6,2.94841]
[1721116151608,0.6113446,3391.9,3391.6,2.94841]
[1721116152113,1.66468447,3391.8,3391.5,3.8676921]
[1721116152407,1.05333987,3391.7,3391.5,3.8676921]
[1721116152612,0.6113446,3391.8,3391.4,0.294871]
[1721116152772,1.66461281,3391.7,3391.4,3.243431]
[1721116152971,0.9170169,3391.8,3391.4,3.243431]
[1721116152972,0.6113446,3391.8,3391.4,3.243431]
[1721116153211,1.66466709,3391.7,3391.4,3.243431]
[1721116153380,0.38520821,3391.6,3391.4,3.243431]
[1721116153576,5.93717931,3392.1,3391.5,3.8844831]
[1721116153875,0.61145489,3391.7,3391.5,3.8844831]
[1721116154089,0.66815571,3391.6,3391.5,3.8844831]
[1721116154317,1.05331122,3391.6,3391.5,3.8844831]
[1721116154611,0.38519326,3391.6,3391.5,3.8844831]
[1721116154817,0.38519326,3391.6,3391.5,0.9359431]
[1721116154984,5.93717931,3392.1,3391.5,0.9359431]
[1721116154985,6.5486342,3392.1,3391.9,2.9482]
[1721116155312,5.93717931,3392.1,3392.0,6.55453]
[1721116155513,0.91718234,3392.6,3392.1,2.94797]
[1721116155514,0.61145489,3392.6,3392.1,2.94797]
[1721116155712,1.66481137,3392.6,3392.4,2.94776]
[1721116155926,6.5486342,3392.7,3392.4,2.94776]
[1721116156085,1.66468938,3392.6,3392.2,3.914919]
[1721116156280,0.38516411,3392.5,3392.2,3.914919]
[1721116156508,0.61145489,3392.6,3392.2,3.914919]
[1721116156729,1.6643637,3392.6,3392.2,3.914919]
[1721116156874,0.3850475,3392.5,3392.3,1.0469449]
[1721116157274,6.5486342,3392.7,3392.3,1.0469449]
[1721116157478,0.38500631,3392.6,3392.3,1.0469449]
[1721116157782,6.5486342,3392.7,3391.5,0.9359431]
[1721116158106,6.5486342,3392.7,3391.6,2.94844]
[1721116158107,0.61145489,3392.0,3391.6,2.94844]
[1721116158428,0.61145489,3392.1,3391.6,2.94844]
[1721116158629,0.61145489,3392.0,3391.5,2.94854]
[1721116158803,0.61145489,3391.9,3391.4,2.94862]
[1721116158994,0.61145489,3391.8,3391.5,3.554972]
[1721116159197,0.9963547,3391.8,3391.5,3.554972]
[1721116159409,0.61145489,3392.0,3391.5,3.554972]
[1721116159710,0.91718234,3392.1,3391.5,3.554972]
[1721116159711,0.61145489,3391.9,3391.5,3.554972]
[1721116160585,1.27900133,3391.9,3391.5,3.554972]
[1721116160884,0.61145489,3392.1,3391.6,3.5987782]
[1721116161111,1.66389755,3392.0,3391.6,3.5987782]
[1721116161317,0.38488308,3391.9,3391.6,3.5987782]
[1721116161591,0.91718234,3392.2,3391.7,3.66373502]
[1721116161592,0.61145489,3392.2,3391.7,3.66373502]
[1721116161791,1.05243946,3392.1,3391.7,3.66373502]
[1721116162122,0.61145489,3392.2,3391.7,3.66373502]
[1721116162316,1.05250443,3392.1,3391.7,3.66373502]
[1721116162516,0.38491964,3392.0,3391.8,0.7218707]
[1721116162730,0.61145489,3392.1,3391.8,0.7218707]
[1721116162939,1.22290978,3392.4,3391.8,0.7218707]
[1721116162940,2.94763,3392.6,3391.8,0.7218707]
[1721116163224,0.61082613,3392.1,3391.5,0.606462]
[1721116163446,0.61082613,3392.0,3391.4,3.0]
[1721116163593,3.55910613,3391.8,3390.9,2.94905]
[1721116163932,1.96835114,3391.9,3390.9,2.94905]
[1721116163933,0.61082613,3391.6,3390.9,2.94905]
[1721116164135,0.61082613,3391.5,3390.9,2.94905]
[1721116164305,1.27814574,3391.5,3390.9,3.948278]
[1721116164505,1.05211194,3391.4,3390.9,0.999228]
[1721116164858,1.05211194,3391.4,3390.5,2.9494]
[1721116164859,0.61082613,3391.2,3390.5,2.9494]
[1721116165135,0.61082613,3391.1,3390.5,2.9494]
[1721116165332,1.27778744,3391.1,3390.6,2.94932]
[1721116165541,0.3845603,3391.0,3390.6,2.94932]
[1721116165708,0.61082613,3391.1,3390.7,0.589882]
[1721116165910,0.61082613,3391.1,3390.6,2.94932]
[1721116166629,0.66699672,3391.0,3390.6,2.94932]
[1721116166940,0.61082613,3391.1,3390.5,2.9494]
[1721116167090,0.6667284,3391.0,3390.5,2.9494]
[1721116167288,0.61082613,3391.1,3390.5,2.9494]
[1721116167493,1.66196207,3391.0,3390.6,2.9493]
[1721116167732,0.61082613,3391.1,3390.6,2.9493]
[1721116167904,0.61082613,3391.2,3390.6,2.9493]
[1721116168146,0.99524966,3391.3,3390.6,7.0433]
[1721116168357,1.66201369,3391.2,3390.6,7.0433]
[1721116168531,1.66201369,3391.2,3390.7,0.824479]
[1721116168532,0.38442353,3391.1,3390.7,0.824479]
[1721116168888,0.61082613,3391.2,3390.7,0.824479]
[1721116169044,0.61082613,3391.2,3390.9,2.94906]
[1721116169385,0.61020059,3391.3,3390.9,2.94906]
[1721116169548,1.5731665,3391.3,3390.9,2.94906]
[1721116169886,0.61020059,3391.0,3390.2,6.116]
[1721116170178,0.62893479,3390.9,3390.4,2.94944]
[1721116170333,0.61020059,3391.0,3390.5,2.94941]
[1721116170533,0.62891776,3390.9,3390.5,2.94941]
[1721116170843,0.33402694,3390.8,3390.5,2.94941]
[1721116171053,0.61020059,3390.9,3390.3,4.265554]
[1721116171262,0.61020059,3390.9,3390.2,5.94963]
[1721116171437,0.61020059,3390.9,3390.4,2.94948]
[1721116171438,0.61020059,3390.8,3390.4,2.94948]
[1721116171780,0.61020059,3390.9,3390.4,2.94948]
[1721116171979,0.61020059,3390.7,3390.2,3.0]
[1721116172141,1.23902155,3390.6,3390.2,3.0]
[1721116172330,0.61020059,3390.7,3390.2,3.889966]
[1721116172527,0.91530088,3390.8,3390.2,3.889966]
[1721116172528,0.61020059,3390.9,3390.6,2.94933]
[1721116172771,1.22040118,3391.3,3390.6,2.94933]
[1721116172772,0.61020059,3391.0,3390.6,2.94933]
[1721116172943,0.61020059,3391.1,3390.6,2.94933]
[1721116173276,0.61020059,3391.0,3390.2,6.839636]
[1721116173479,0.33406049,3391.0,3390.5,2.9494]
[1721116173630,0.61020059,3391.1,3390.5,2.9494]
[1721116173832,0.61020059,3391.1,3390.6,2.94931]
[1721116174033,0.96312042,3391.0,3390.6,2.94931]
[1721116174228,0.61020059,3391.1,3390.6,2.94931]
[1721116174490,0.61020059,3390.9,3390.3,3.0]
[1721116174666,0.61020059,3390.8,3390.2,2.94963]
[1721116174973,0.61020059,3390.7,3390.2,2.94963]
[1721116175133,0.94424293,3390.7,3390.2,2.94963]
[1721116175336,0.33404234,3390.6,3390.3,0.589947]
[1721116175558,0.91530088,3390.9,3390.3,3.539517]
[1721116175559,0.61020059,3390.9,3390.3,3.539517]
[1721116175742,0.61020059,3390.9,3390.6,2.94932]
[1721116176381,1.57323464,3390.9,3390.6,2.94932]
[1721116176580,0.96294658,3390.8,3390.4,2.94947]
[1721116176800,0.96294658,3390.8,3390.1,7.04374]
[1721116176801,0.61020059,3390.8,3390.2,2.94961]
[1721116176949,1.57314717,3390.7,3390.2,2.94963]
[1721116177145,0.61020059,3390.8,3390.3,2.94955]
[1721116177884,0.94421153,3390.9,3390.4,2.94949]
[1721116178179,4.16925118,3391.2,3390.2,4.005937]
[1721116178180,0.61020059,3391.1,3390.2,4.005937]
[1721116178353,1.57274489,3391.0,3390.9,2.94906]
[1721116178551,5.93717931,3391.4,3391.1,2.94883]
[1721116178552,6.5473799,3391.4,3391.1,2.94883]
[1721116178764,5.93717931,3391.4,3391.1,3.555313]
[1721116179478,5.93717931,3391.4,3391.3,5.89744]
[1721116179639,0.61020059,3391.9,3391.6,2.94841]
[1721116179842,0.61020059,3391.9,3391.4,2.94863]
[1721116179843,1.5729601,3391.9,3391.4,2.94863]
[1721116180081,1.5729601,3391.8,3391.4,2.94863]
[1721116180287,0.96264577,3391.7,3391.4,2.94863]
[1721116180596,0.33389917,3391.6,3391.2,3.0]
[1721116180739,0.61020059,3391.8,3391.1,3.0]
[1721116180740,0.61020059,3391.7,3391.1,3.0]
[1721116181078,1.23891498,3391.6,3391.1,3.0]
[1721116181376,1.23891498,3391.6,3391.0,2.94895]
[1721116181377,0.33390148,3391.5,3391.0,2.94895]
[1721116181591,0.33390148,3391.5,3390.7,2.94923]
[1721116181592,0.61020059,3391.6,3390.7,2.94923]
[1721116181749,1.57299264,3391.5,3390.9,2.94905]
[1721116181942,0.33396505,3391.4,3390.9,2.94905]
[1721116182137,1.57298248,3391.4,3390.9,2.94905]
[1721116182338,0.33396505,3391.3,3390.9,2.94905]
[1721116182595,0.91530088,3391.6,3390.7,2.94923]
[1721116182596,0.61020059,3391.5,3390.7,2.94923]
[1721116182762,0.61020059,3391.3,3390.7,2.94923]
[1721116183077,1.57349785,3391.2,3390.7,2.94923]
[1721116183388,0.96329726,3391.1,3390.8,2.94914]
[1721116183625,0.61020059,3391.2,3390.5,2.9494]
[1721116183882,2.9495,3390.4,3389.6,2.95019]
[1721116184085,2.9495,3390.4,3389.6,3.540244]
[1721116184086,0.33408005,3390.3,3389.6,3.540244]
[1721116184305,0.61020059,3390.2,3389.6,0.590054]
[1721116184522,0.61020059,3390.1,3389.3,2.95045]
[1721116184824,0.62880426,3390.0,3389.3,2.95045]
[1721116185000,0.33400366,3389.9,3389.3,2.95045]
[1721116185206,3.55998059,3390.1,3389.3,2.95045]
[1721116185515,0.33386314,3390.0,3389.3,2.95045]
[1721116185814,3.28371314,3390.0,3389.0,2.95071]
[1721116185987,3.28371314,3390.0,3389.2,2.95047]
[1721116185988,0.96232485,3389.9,3389.2,2.95047]
[1721116186308,0.33366731,3389.8,3389.2,2.95047]
[1721116186516,2.94985,3390.0,3389.2,2.95047]
[1721116186517,3.56005059,3390.0,3389.2,2.95047]
[1721116186808,0.96168607,3389.9,3389.3,2.95045]
[1721116187025,3.56005059,3390.0,3389.3,2.95045]
[1721116187026,0.61020059,3390.0,3389.3,2.95045]
[1721116187183,0.61020059,3390.3,3389.6,2.95016]
[1721116187377,1.57157949,3390.2,3389.6,2.95016]
[1721116187613,2.94941,3390.5,3389.6,2.95016]
[1721116187923,0.60913901,3390.2,3389.4,2.95036]
[1721116188123,0.94268462,3390.2,3389.5,3.9109618]
[1721116188278,0.33354561,3390.1,3389.5,3.9109618]
[1721116188474,0.60913901,3390.2,3389.5,3.9109618]
[1721116189439,0.60913901,3390.3,3389.5,3.9109618]
[1721116189651,1.57006183,3390.3,3389.5,3.9109618]
[1721116189925,3.55864901,3390.4,3389.6,0.99774018]
[1721116190232,0.33339227,3390.3,3389.6,0.99774018]
[1721116190737,5.93717931,3390.6,3390.0,2.94978]
[1721116190950,5.93717931,3390.6,3390.1,0.294978]
[1721116191227,5.93717931,3390.6,3390.1,3.244738]
[1721116192701,5.93717931,3390.6,3390.1,0.294978]
[1721116192910,5.93717931,3390.6,3389.9,2.94988]
[1721116193163,2.94943,3390.5,3389.8,3.0]
[1721116195110,5.93717931,3390.6,3389.8,3.0]
[1721116195325,5.93717931,3390.6,3390.0,2.94985]
[1721116196334,5.93717931,3390.6,3389.8,5.95002]
[1721116196632,5.93717931,3390.6,3389.9,0.69477602]
[1721116196936,5.93717931,3390.6,3389.9,3.64469602]
[1721116197735,5.93717931,3390.6,3389.9,3.64464602]
[1721116198227,2.94946,3390.5,3389.9,0.69477602]
[1721116198432,2.94941,3390.5,3389.1,2.95056]
[1721116198747,5.93717931,3390.6,3389.1,2.95055]
[1721116198748,2.94996,3389.9,3389.1,2.95055]
[1721116198953,2.94996,3389.9,3388.9,6.06679]
[1721116199151,2.94996,3389.9,3388.1,0.61594442]
[1721116199152,2.95053,3389.3,3388.1,0.61594442]
[1721116199494,2.95074,3389.0,3388.2,2.95133]
[1721116199645,2.95074,3389.0,3388.3,0.65188544]
[1721116200453,2.95056,3389.2,3388.4,2.95122]
[1721116201152,2.95064,3389.1,3388.3,0.65188544]
[1721116201356,2.4682,3389.1,3388.1,0.61594442]
[1721116201669,2.4682,3389.1,3387.0,2.95237]
[1721116201670,2.95159,3388.0,3387.0,2.95237]
[1721116201978,2.95167,3388.0,3387.1,3.247587]
[1721116202311,0.60861652,3388.4,3387.1,0.295237]
[1721116202554,0.60861652,3388.4,3387.2,3.116]
[1721116202555,2.95134,3388.3,3387.2,3.116]
[1721116202751,2.95134,3388.3,3387.2,2.9522]
[1721116202752,2.95156,3388.1,3387.2,2.9522]
[1721116203251,2.95156,3388.1,3387.3,3.0]
[1721116203446,2.95156,3388.1,3387.3,5.95219]
[1721116203756,0.60768963,3388.4,3387.8,2.95172]
[1721116203915,0.60768963,3388.4,3387.4,3.711219]
[1721116203916,0.60768963,3388.9,3388.1,2.95149]
[1721116204115,4.46960178,3389.4,3388.3,2.95131]
[1721116204116,0.60768963,3389.3,3388.3,2.95131]
[1721116204334,1.56649147,3389.3,3388.3,2.95131]
[1721116204537,0.33263286,3389.2,3388.3,2.95131]
[1721116204744,2.95056,3389.2,3388.4,0.59028]
[1721116205522,0.60711742,3389.4,3388.5,2.95114]
[1721116205717,0.60711742,3389.5,3388.5,2.95114]
[1721116205921,1.565458,3389.5,3388.5,2.95114]
[1721116206457,2.95049,3389.3,3388.5,2.95114]
[1721116206647,2.95049,3389.3,3388.6,0.354142]
[1721116207043,2.95055,3389.2,3388.6,0.354142]
[1721116207245,2.95076,3389.0,3388.1,2.9515]
[1721116207445,2.95076,3389.0,3388.2,3.0]
[1721116208567,2.95049,3389.3,3388.2,5.9514]
[1721116209061,2.95049,3389.3,3388.4,2.95118]
[1721116209269,2.95049,3389.3,3388.2,3.0]
[1721116209474,2.95081,3388.9,3387.7,3.0]
[1721116209677,2.95098,3388.7,3387.7,3.0]
[1721116209891,2.95098,3388.7,3387.8,2.9517]
[1721116210191,2.95098,3388.7,3387.9,3.0]
[1721116210373,1.15711742,3389.2,3388.0,0.89517]
[1721116210703,0.91067614,3389.4,3388.2,2.95141]
[1721116210704,2.95064,3389.1,3388.2,2.95141]
[1721116210843,0.60711742,3389.3,3388.2,2.95141]
[1721116210844,2.95049,3389.3,3388.4,2.95123]
[1721116211047,2.95056,3389.2,3388.4,2.95123]
[1721116211247,2.95041,3389.4,3388.5,0.590264]
[1721116211481,2.95047,3389.3,3388.5,0.590264]
[1721116211687,5.93717931,3389.5,3388.7,2.9509]
[1721116212800,5.93717931,3389.5,3388.9,2.95078]
[1721116213111,18.23717931,3389.8,3388.9,3.116]
[1721116213272,18.23717931,3389.8,3389.4,2.95037]
[1721116213455,8.88686931,3390.2,3389.2,2.95054]
[1721116213759,2.94985,3390.0,3389.2,2.95054]
[1721116213950,2.94986,3390.0,3389.0,3.3116]
[1721116214151,2.95012,3389.7,3389.0,0.3116]
[1721116214546,2.95028,3389.5,3389.1,0.62624]
[1721116214705,2.94994,3389.9,3389.1,0.62624]
[1721116215169,2.94978,3390.1,3389.2,0.05900428]
[1721116215495,2.95003,3389.8,3389.1,3.62624]
[1721116215856,2.94985,3390.0,3389.1,6.57685]
[1721116216063,2.94985,3390.0,3389.2,0.688845]
[1721116216365,2.95003,3389.8,3389.2,0.688845]
[1721116216568,2.95003,3389.8,3388.9,2.95076]
[1721116216987,2.95029,3389.5,3388.7,2.95097]
[1721116217157,2.95038,3389.4,3388.8,3.0]
[1721116217358,2.9502,3389.6,3388.5,3.0]
[1721116217705,8.29417931,3389.7,3389.0,2.9507]
[1721116217706,5.93717931,3389.7,3389.0,2.9507]
[1721116217897,5.93717931,3389.7,3389.1,0.29507]
[1721116218114,5.93717931,3389.7,3388.5,5.95114]
[1721116218403,2.95028,3389.6,3388.5,5.95114]
[1721116218582,2.95028,3389.6,3388.7,2.95096]
[1721116218759,2.95028,3389.6,3388.8,3.0]
[1721116218954,2.95028,3389.6,3388.3,2.95132]
[1721116219262,2.95028,3389.6,3387.0,1.5]
[1721116219263,2.9508,3389.0,3388.2,2.95141]
[1721116221111,2.95099,3388.7,3387.7,2.95185]
[1721116221421,2.95099,3388.7,3387.6,2.95193]
[1721116221422,2.95117,3388.5,3387.6,2.95193]
[1721116222178,0.60690323,3388.7,3387.3,2.95214]
[1721116222405,0.60690323,3388.7,3387.1,2.95233]
[1721116222406,0.60690323,3388.5,3387.1,2.95233]
[1721116222577,1.56568775,3388.5,3387.1,2.95233]
[1721116222764,2.95161,3388.0,3387.1,5.90466]
[1721116222967,2.95161,3388.0,3387.2,2.95228]
[1721116223568,2.95161,3388.0,3386.7,3.116]
[1721116223874,2.95161,3388.0,3386.0,0.46289909]
[1721116223875,5.4472,3386.9,3386.0,0.46289909]
[1721116224092,5.4472,3386.9,3385.2,2.3047]
[1721116224093,2.9529,3386.5,3385.2,2.3047]
[1721116224288,1.40612283,3386.8,3385.3,2.95394]
[1721116224289,2.95273,3386.7,3385.3,2.95394]
[1721116224460,3.60613786,3386.8,3385.4,0.58492719]
[1721116224660,2.72762039,3387.3,3385.4,0.58492719]
[1721116224661,0.60613786,3387.1,3385.5,7.26905976]
[1721116224888,2.95255,3386.9,3385.5,6.0697]
[1721116225090,5.95233,3387.2,3385.4,0.525864]
[1721116225091,0.55,3387.2,3385.4,0.525864]
[1721116225299,0.55,3387.2,3385.2,2.3047]
[1721116225300,2.95308,3386.3,3385.2,2.3047]
[1721116225470,2.95317,3386.2,3384.6,2.2598]
[1721116225782,2.95317,3386.2,3384.2,4.094]
[1721116225783,2.95395,3385.3,3384.2,7.04885]
[1721116225982,2.95395,3385.3,3384.0,5.90912255]
[1721116225983,2.95395,3385.3,3384.1,2.95496]
[1721116226200,2.95415,3385.1,3384.0,2.491]
[1721116226382,5.93717931,3385.4,3384.0,0.57546707]
[1721116226383,2.9543,3384.9,3384.0,0.57546707]
[1721116226594,0.55,3384.8,3383.3,5.30648]
[1721116226789,6.50441,3384.8,3383.3,5.30648]
[1721116226962,6.50438,3384.8,3383.3,5.30648]
[1721116227160,3.55,3384.8,3383.3,5.30648]
[1721116227361,2.95457,3384.6,3383.3,5.30648]
[1721116227596,2.95456,3384.6,3383.4,2.95558]
[1721116227782,5.93717931,3384.9,3384.0,2.95503]
[1721116227978,5.93717931,3384.9,3384.3,6.07081]
[1721116228159,5.93717931,3384.9,3384.8,6.07038]
[1721116228368,5.93717931,3385.5,3385.3,2.95388]
[1721116228969,5.93717931,3385.5,3385.0,2.95412]
[1721116229198,5.93717931,3385.5,3385.3,2.95388]
[1721116229477,5.93717931,3385.5,3385.4,3.549248]
[1721116229672,5.93717931,3385.5,3385.4,0.595388]
[1721116229925,5.93717931,3385.5,3384.9,3.0]
[1721116229926,5.93717931,3385.5,3385.1,2.9541]
[1721116230121,5.93717931,3385.5,3385.2,3.0]
[1721116230412,5.93717931,3385.5,3384.4,5.41248]
[1721116230413,2.95421,3385.0,3384.0,2.95502]
[1721116230914,2.95432,3384.9,3383.9,0.30844067]
[1721116231120,2.95465,3384.5,3383.9,0.30844067]
[1721116231279,5.93717931,3385.2,3383.9,0.30844067]
[1721116231280,2.9545,3384.7,3383.9,0.30844067]
[1721116231682,5.93717931,3385.2,3383.9,0.30844067]
[1721116231683,2.95464,3384.5,3383.9,0.30844067]
[1721116232026,2.95508,3384.0,3383.9,0.30844067]
[1721116232640,3.0,3384.4,3383.9,0.30844067]
[1721116232780,0.55,3384.3,3383.9,0.30844067]
[1721116232980,2.95492,3384.2,3383.9,0.30844067]
[1721116233181,2.95508,3384.0,3383.9,0.30844067]
[1721116233415,0.55,3384.3,3383.9,0.30844067]
[1721116233628,3.0,3384.7,3383.9,0.30844067]
[1721116233940,2.4964,3384.8,3383.9,0.30844067]
[1721116233941,2.95486,3384.3,3383.9,0.30844067]
[1721116234236,2.95422,3385.0,3384.0,0.05909916]
[1721116234518,2.95422,3385.0,3383.9,0.30844067]
[1721116234519,2.3045,3385.7,3384.1,0.44615398]
[1721116234720,2.95422,3385.0,3384.1,0.44615398]
[1721116234941,2.3045,3385.7,3384.5,2.95456]
[1721116235085,2.3413,3386.2,3384.5,2.95456]
[1721116235279,2.3413,3386.2,3384.6,2.95455]
[1721116235280,2.95369,3385.6,3384.6,2.95455]
[1721116235540,2.95369,3385.6,3384.7,3.545371]
[1721116235820,2.95369,3385.6,3384.7,0.590911]
[1721116235995,2.95369,3385.6,3384.6,2.95455]
[1721116236515,2.3413,3386.2,3384.1,3.40113398]
[1721116236516,2.9541,3385.2,3384.1,3.40113398]
[1721116236714,2.9541,3385.2,3384.3,2.95479]
[1721116236885,2.95429,3385.0,3384.1,0.44615398]
[1721116237082,11.38437931,3385.2,3384.1,3.40112398]
[1721116237286,11.38437931,3385.2,3384.4,2.95472]
[1721116237287,5.93717931,3385.2,3384.4,2.95472]
[1721116237496,5.93717931,3385.2,3384.2,0.67095646]
[1721116237706,2.95417,3385.1,3384.0,2.955]
[1721116237926,2.95417,3385.1,3383.9,0.30844067]
[1721116238139,2.95423,3385.0,3383.9,6.26359067]
[1721116238425,0.55,3385.0,3383.9,0.30844067]
[1721116238628,0.55,3385.0,3383.9,0.63482674]
[1721116238840,2.9543,3384.9,3384.0,2.95508]
[1721116239290,0.55,3385.0,3384.0,2.95508]
[1721116239495,3.50421,3385.0,3384.1,2.95498]
[1721116239719,2.95432,3384.9,3384.1,2.95498]
[1721116240035,2.95432,3384.9,3383.9,0.63482674]
[1721116240036,0.55,3384.8,3383.9,0.30844067]
[1721116240327,2.95463,3384.6,3383.9,0.30844067]
[1721116240545,0.55,3385.0,3383.9,0.30844067]
[1721116240546,2.95475,3384.4,3383.9,0.30844067]
[1721116241134,2.95435,3384.9,3383.9,0.30844067]
[1721116241355,2.95457,3384.6,3383.9,0.63480974]
[1721116241494,0.55,3385.0,3383.9,0.30844067]
[1721116241850,8.43027931,3385.2,3384.0,0.05909656]
[1721116241851,6.50412,3385.1,3384.0,0.05909656]
[1721116242135,0.55,3385.1,3384.0,2.95507]
[1721116242341,0.55,3385.1,3384.1,0.56375107]
[1721116242706,5.93717931,3385.2,3384.1,0.56375107]
[1721116243057,5.93717931,3385.2,3384.8,2.95437]
[1721116243203,5.93717931,3385.6,3384.8,2.95437]
[1721116243433,5.93717931,3385.6,3385.0,2.95419]
[1721116243637,5.93717931,3385.6,3385.1,2.95408]
[1721116244330,5.93717931,3385.6,3384.8,2.95436]
[1721116244552,5.93717931,3385.6,3384.9,2.95429]
[1721116244735,5.93717931,3385.6,3384.9,3.01336877]
[1721116245042,5.93717931,3385.6,3384.9,2.95429]
[1721116245220,5.93717931,3385.6,3385.5,2.95377]
[1721116245542,5.93717931,3386.2,3385.5,2.95377]
[1721116245742,5.93717931,3386.2,3385.5,0.590775]
[1721116245943,5.93717931,3386.2,3386.1,2.95325]
[1721116246735,5.93717931,3386.2,3385.5,0.590775]
[1721116246932,5.93717931,3386.2,3385.8,2.95349]
[1721116247158,5.93717931,3386.2,3386.0,2.95325]
[1721116247367,2.95238,3387.1,3386.5,2.95285]
[1721116247368,5.93717931,3386.7,3386.5,2.95285]
[1721116247687,19.93,3387.9,3386.5,2.95285]
[1721116247688,5.93717931,3387.2,3386.5,2.95285]
[1721116247965,5.93717931,3387.2,3386.9,2.95254]
[1721116248164,5.93717931,3387.2,3386.8,2.95263]
[1721116248458,5.93717931,3387.2,3386.1,0.295325]
[1721116248631,5.93717931,3387.2,3386.6,2.95272]
[1721116248824,5.93717931,3387.2,3386.9,2.95253]
[1721116249684,12.3,3387.6,3387.3,2.95219]
[1721116249957,2.4193,3388.7,3387.3,2.95219]
[1721116249958,5.93717931,3388.1,3387.3,2.95219]
[1721116250260,5.93717931,3388.1,3387.4,2.9521]
[1721116250557,5.93717931,3388.1,3387.4,2.95208]
[1721116251151,8.88868931,3388.1,3386.4,7.094]
[1721116251364,8.88868931,3388.1,3386.5,4.04958325]
[1721116251766,2.95194,3387.6,3386.5,3.0]
[1721116252271,2.95238,3387.1,3385.9,4.094]
[1721116252438,2.95238,3387.1,3386.0,2.95329]
[1721116252637,2.95238,3387.1,3386.2,2.95315]
[1721116252979,2.95246,3387.0,3386.1,2.95324]
[1721116253191,5.93717931,3387.2,3386.5,2.95283]
[1721116253497,5.93717931,3387.2,3386.1,0.590674]
[1721116253498,5.93717931,3387.2,3386.3,2.95306]
[1721116253640,5.93717931,3387.2,3386.5,2.95282]
[1721116254885,5.93717931,3387.2,3386.6,2.9528]
[1721116255900,5.93717931,3387.2,3386.9,2.95254]
[1721116256033,12.3,3387.6,3386.9,2.95254]
[1721116256239,12.3,3387.6,3386.7,2.95271]
[1721116256502,12.3,3387.6,3386.8,2.95258]
[1721116256797,12.3,3387.6,3386.9,2.95253]
[1721116256941,5.93717931,3387.7,3386.8,3.706529]
[1721116257295,5.93717931,3387.7,3387.6,2.95194]
[1721116257586,5.93717931,3387.7,3386.8,0.590529]
[1721116257587,12.3,3388.2,3387.7,2.95184]
[1721116257881,12.3,3388.2,3387.5,2.95198]
[1721116258241,12.3,3388.2,3387.6,2.95191]
[1721116259156,12.3,3388.2,3387.4,2.95209]
[1721116259370,12.3,3388.2,3387.5,2.95196]
[1721116259760,12.3,3388.2,3386.8,0.590529]
[1721116259761,2.95158,3388.1,3386.8,0.590529]
[1721116260078,2.95158,3388.1,3387.2,2.95222]
[1721116260237,8.88857931,3388.3,3386.4,4.094]
[1721116260238,5.93717931,3388.3,3386.4,4.094]
[1721116260444,2.95179,3387.8,3387.0,2.95245]
[1721116260753,2.95179,3387.8,3386.5,3.0]
[1721116260754,2.95186,3387.7,3386.7,2.95271]
[1721116261099,2.95197,3387.6,3386.7,2.95271]
[1721116261256,2.95197,3387.6,3386.4,2.95294]
[1721116261612,2.95266,3386.8,3385.6,2.95361]
[1721116261886,8.88983931,3386.8,3385.7,3.658321]
[1721116262069,5.93717931,3386.8,3385.3,5.23826]